fUSD/lending_fUSD_20260529
["ID","MTS","AMOUNT","RATE_DAILY","PERIOD"]
[423256523,1779999074000,-935.29536278,0.00032839,7]
[423256521,1779999074000,-909.38570734,0.00032839,7]
[423256577,1779999074000,-503.57,0.000345,30]
[423256553,1779999074000,-309.0,0.000337,2]
[423256554,1779999074000,-3158.1,0.00033773,7]
[423256555,1779999074000,-2000.0,0.00033892,7]
[423256556,1779999074000,-601.0,0.00033958,11]
[423256557,1779999074000,-350.0,0.00033973,5]
[423256558,1779999074000,-500.0,0.00033973,7]
[423256559,1779999074000,-167.64,0.00034,2]
[423256560,1779999074000,-167.695041,0.00034,2]
[423256561,1779999074000,-750.0,0.00034,2]
[423256562,1779999074000,-4656.97290398,0.00034125,2]
[423256564,1779999074000,-152.0,0.00034137,6]
[423256565,1779999074000,-152.0,0.00034137,3]
[423256566,1779999074000,-3549.0,0.00034146,2]
[423256568,1779999074000,-1225.0,0.00034146,2]
[423256567,1779999074000,-525.0,0.00034146,2]
[423256569,1779999074000,-1054.23817934,0.00034169,7]
[423256570,1779999074000,-1060.9499919,0.00034174,7]
[423256571,1779999074000,-1062.60240281,0.00034174,2]
[423256572,1779999074000,-1091.17792324,0.00034174,7]
[423256573,1779999074000,-1066.95717492,0.00034175,7]
[423256575,1779999074000,-188.34675647,0.00034186,2]
[423256574,1779999074000,-1579.9,0.00034182,7]
[423256576,1779999074000,-45325.0165092,0.000345,2]
[423256519,1779999074000,-1105.28450338,0.00032834,7]
[423256578,1779999074000,-601.0,0.00034513,11]
[423256552,1779999074000,-188.34675647,0.00033606,2]
[423256551,1779999074000,-273.23,0.000336,7]
[423256563,1779999074000,-2098.97849234,0.00034129,7]
[423256549,1779999074000,-595.3152126,0.00033529,2]
[423256525,1779999074000,-914.53472136,0.0003284,7]
[423256550,1779999074000,-411.8743888,0.00033529,2]
[423256520,1779999074000,-1026.64810839,0.00032834,7]
[423256524,1779999074000,-961.21791911,0.0003284,7]
[423256526,1779999074000,-601.0,0.00032848,10]
[423256528,1779999074000,-3576.98882323,0.0003287,7]
[423256535,1779999074000,-250.0,0.00033,2]
[423256532,1779999074000,-500.0,0.00032877,2]
[423256531,1779999074000,-167.46223961,0.00032877,2]
[423256533,1779999074000,-501.5283905,0.00032877,2]
[423256534,1779999074000,-150.0,0.00032877,14]
[423256529,1779999074000,-799.65,0.00032877,2]
[423256530,1779999074000,-350.67,0.00032877,2]
[423256527,1779999074000,-927.51439956,0.00032854,7]
[423256537,1779999074000,-36277.98429488,0.00033,3]
[423256548,1779999074000,-601.0,0.00033403,10]
[423256545,1779999074000,-898.67,0.000334,30]
[423256546,1779999074000,-418.0,0.00033402,2]
[423256547,1779999074000,-6064.0,0.00033402,2]
[423256536,1779999074000,-681.41605727,0.00033,3]
[423256543,1779999074000,-503.57,0.000331,30]
[423256544,1779999074000,-1500.0,0.000334,7]
[423256541,1779999074000,-350.0,0.00033014,5]
[423256540,1779999074000,-1041.66666667,0.00033,2]
[423256539,1779999074000,-286.509793,0.00033,14]
[423256538,1779999074000,-838.84568722,0.00033,7]
[423256542,1779999074000,-188.34675647,0.00033027,2]
[423256616,1779999075000,-702.31140773,0.0003559,2]
[423256615,1779999075000,-346.44831077,0.0003559,2]
[423256617,1779999075000,-1800.20391073,0.0003559,2]
[423256614,1779999075000,-470.00493837,0.0003559,2]
[423256609,1779999075000,-200.0,0.00035383,5]
[423256613,1779999075000,-250.0,0.00035578,7]
[423256611,1779999075000,-200.0,0.00035384,5]
[423256610,1779999075000,-200.0,0.00035384,5]
[423256618,1779999075000,-1800.20391073,0.0003559,2]
[423256608,1779999075000,-200.0,0.00035383,5]
[423256612,1779999075000,-5531.0,0.000354,3]
[423256621,1779999075000,-300.0,0.0003559,2]
[423256625,1779999075000,-300.0,0.0003559,2]
[423256622,1779999075000,-300.0,0.0003559,2]
[423256623,1779999075000,-300.0,0.0003559,2]
[423256624,1779999075000,-300.0,0.0003559,2]
[423256626,1779999075000,-1068.67230718,0.0003559,2]
[423256620,1779999075000,-452.63792693,0.0003559,2]
[423256627,1779999075000,-300.0,0.0003559,2]
[423256629,1779999075000,-344.53139053,0.0003559,2]
[423256628,1779999075000,-300.0,0.0003559,2]
[423256630,1779999075000,-527.74435971,0.0003559,2]
[423256637,1779999075000,-1634.99163645,0.0003559,2]
[423256606,1779999075000,-274.551478,0.000352,26]
[423256619,1779999075000,-1149.10169744,0.0003559,2]
[423256607,1779999075000,-485.15489738,0.00035343,7]
[423256634,1779999075000,-1149.10169744,0.0003559,2]
[423256604,1779999075000,-2000.0,0.00035114,7]
[423256579,1779999075000,-150.0,0.00034521,2]
[423256580,1779999075000,-898.67,0.000346,30]
[423256581,1779999075000,-16412.0,0.000347,2]
[423256582,1779999075000,-387.03725326,0.00034753,2]
[423256583,1779999075000,-1500.0,0.00034795,2]
[423256584,1779999075000,-1428.0,0.000348,2]
[423256585,1779999075000,-200.0,0.000349,12]
[423256586,1779999075000,-3158.1,0.00034925,7]
[423256587,1779999075000,-350.0,0.00034931,5]
[423256588,1779999075000,-201.56,0.0003495,25]
[423256589,1779999075000,-218.59374268,0.00034997,14]
[423256590,1779999075000,-509.62792467,0.00035,7]
[423256591,1779999075000,-250.0,0.00035,2]
[423256592,1779999075000,-340000.0,0.00035,4]
[423256593,1779999075000,-26301.05729991,0.00035,2]
[423256594,1779999075000,-186.66299449,0.00035,2]
[423256595,1779999075000,-150.0,0.00035,2]
[423256596,1779999075000,-29735.56916739,0.00035,2]
[423256597,1779999075000,-500.0,0.00035,14]
[423256598,1779999075000,-9236.72633393,0.00035,7]
[423256599,1779999075000,-2974.09941473,0.00035,20]
[423256600,1779999075000,-601.0,0.00035067,12]
[423256601,1779999075000,-203.05475875,0.00035088,7]
[423256602,1779999075000,-150.0,0.00035088,7]
[423256603,1779999075000,-267.0128583,0.00035088,7]
[423256605,1779999075000,-937.57,0.00035137,120]
[423256633,1779999075000,-1800.20391073,0.0003559,2]
[423256636,1779999075000,-418.13483043,0.0003559,2]
[423256639,1779999075000,-300.0,0.0003559,2]
[423256670,1779999075000,-550.24383906,0.0003559,2]
[423256671,1779999075000,-300.73641675,0.0003559,2]
[423256674,1779999075000,-300.0,0.0003559,2]
[423256676,1779999075000,-527.74435971,0.0003559,2]
[423256666,1779999075000,-1068.67230718,0.0003559,2]
[423256664,1779999075000,-300.63744633,0.0003559,2]
[423256675,1779999075000,-344.53139053,0.0003559,2]
[423256665,1779999075000,-531.52650177,0.0003559,2]
[423256668,1779999075000,-300.0,0.0003559,2]
[423256667,1779999075000,-727.22668274,0.0003559,2]
[423256669,1779999075000,-301.06586081,0.0003559,2]
[423256673,1779999075000,-300.0,0.0003559,2]
[423256677,1779999075000,-300.79831349,0.0003559,2]
[423256687,1779999075000,-300.0,0.0003559,2]
[423256678,1779999075000,-300.0,0.0003559,2]
[423256688,1779999075000,-301.39481289,0.0003559,2]
[423256680,1779999075000,-950.53639116,0.0003559,2]
[423256679,1779999075000,-300.0,0.0003559,2]
[423256681,1779999075000,-1800.20391073,0.0003559,2]
[423256685,1779999075000,-306.71589705,0.0003559,2]
[423256683,1779999075000,-310.10057906,0.0003559,2]
[423256682,1779999075000,-1149.10169744,0.0003559,2]
[423256684,1779999075000,-1634.99163645,0.0003559,2]
[423256690,1779999075000,-452.63792693,0.0003559,2]
[423256686,1779999075000,-300.72635473,0.0003559,2]
[423256672,1779999075000,-300.0,0.0003559,2]
[423256689,1779999075000,-402.4652114,0.0003559,2]
[423256658,1779999075000,-300.0,0.0003559,2]
[423256654,1779999075000,-300.72580647,0.0003559,2]
[423256631,1779999075000,-300.0,0.0003559,2]
[423256632,1779999075000,-950.53639116,0.0003559,2]
[423256635,1779999075000,-310.10057906,0.0003559,2]
[423256640,1779999075000,-578.42695065,0.0003559,2]
[423256643,1779999075000,-300.0,0.0003559,2]
[423256641,1779999075000,-300.76223682,0.0003559,2]
[423256642,1779999075000,-452.63792693,0.0003559,2]
[423256644,1779999075000,-301.28861319,0.0003559,2]
[423256645,1779999075000,-353.12730559,0.0003559,2]
[423256648,1779999075000,-300.0,0.0003559,2]
[423256647,1779999075000,-300.0,0.0003559,2]
[423256646,1779999075000,-484.87971406,0.0003559,2]
[423256638,1779999075000,-300.0,0.0003559,2]
[423256651,1779999075000,-357.63203173,0.0003559,2]
[423256649,1779999075000,-300.0,0.0003559,2]
[423256653,1779999075000,-300.0,0.0003559,2]
[423256655,1779999075000,-300.0,0.0003559,2]
[423256657,1779999075000,-300.69741463,0.0003559,2]
[423256652,1779999075000,-300.0,0.0003559,2]
[423256661,1779999075000,-300.79405177,0.0003559,2]
[423256663,1779999075000,-301.07269164,0.0003559,2]
[423256660,1779999075000,-300.0,0.0003559,2]
[423256659,1779999075000,-576.79327532,0.0003559,2]
[423256650,1779999075000,-300.0,0.0003559,2]
[423256656,1779999075000,-300.0,0.0003559,2]
[423256662,1779999075000,-301.06124977,0.0003559,2]
[423256717,1779999076000,-1264.24574848,0.0003559,2]
[423256727,1779999076000,-369.47314959,0.0003559,2]
[423256720,1779999076000,-301.07142142,0.0003559,2]
[423256719,1779999076000,-527.74435971,0.0003559,2]
[423256724,1779999076000,-1800.20391073,0.0003559,2]
[423256725,1779999076000,-1149.10169744,0.0003559,2]
[423256722,1779999076000,-865.81178355,0.0003559,2]
[423256723,1779999076000,-950.53639116,0.0003559,2]
[423256728,1779999076000,-300.0,0.0003559,2]
[423256726,1779999076000,-310.10057906,0.0003559,2]
[423256731,1779999076000,-300.0,0.0003559,2]
[423256736,1779999076000,-300.0,0.0003559,2]
[423256729,1779999076000,-464.59046343,0.0003559,2]
[423256734,1779999076000,-301.1860121,0.0003559,2]
[423256735,1779999076000,-301.20142766,0.0003559,2]
[423256716,1779999076000,-475.72548365,0.0003559,2]
[423256733,1779999076000,-310.35255644,0.0003559,2]
[423256737,1779999076000,-565.85677961,0.0003559,2]
[423256732,1779999076000,-484.87971406,0.0003559,2]
[423256738,1779999076000,-1096.53053831,0.0003559,2]
[423256742,1779999076000,-605.44192367,0.0003559,2]
[423256743,1779999076000,-300.0,0.0003559,2]
[423256740,1779999076000,-401.69503609,0.0003559,2]
[423256730,1779999076000,-452.63792693,0.0003559,2]
[423256715,1779999076000,-300.0,0.0003559,2]
[423256710,1779999076000,-727.22668274,0.0003559,2]
[423256714,1779999076000,-300.0,0.0003559,2]
[423256739,1779999076000,-300.0,0.0003559,2]
[423256698,1779999076000,-300.77282212,0.0003559,2]
[423256693,1779999076000,-300.0,0.0003559,2]
[423256692,1779999076000,-484.87971406,0.0003559,2]
[423256700,1779999076000,-1096.53053831,0.0003559,2]
[423256694,1779999076000,-300.0,0.0003559,2]
[423256695,1779999076000,-300.82423907,0.0003559,2]
[423256699,1779999076000,-451.16734516,0.0003559,2]
[423256697,1779999076000,-300.0,0.0003559,2]
[423256691,1779999076000,-300.0,0.0003559,2]
[423256696,1779999076000,-300.0,0.0003559,2]
[423256701,1779999076000,-300.92199886,0.0003559,2]
[423256712,1779999076000,-300.0,0.0003559,2]
[423256702,1779999076000,-300.0,0.0003559,2]
[423256703,1779999076000,-457.08334603,0.0003559,2]
[423256706,1779999076000,-300.0,0.0003559,2]
[423256704,1779999076000,-300.75840294,0.0003559,2]
[423256711,1779999076000,-302.2839583,0.0003559,2]
[423256705,1779999076000,-300.77216368,0.0003559,2]
[423256708,1779999076000,-300.0,0.0003559,2]
[423256709,1779999076000,-1068.67230718,0.0003559,2]
[423256713,1779999076000,-301.06586081,0.0003559,2]
[423256721,1779999076000,-301.0353587,0.0003559,2]
[423256718,1779999076000,-344.53139053,0.0003559,2]
[423256707,1779999076000,-605.44192367,0.0003559,2]
[423256745,1779999076000,-1068.67230718,0.0003559,2]
[423256741,1779999076000,-493.49232006,0.0003559,2]
[423256784,1779999076000,-727.22668274,0.0003559,2]
[423256785,1779999076000,-580.85445497,0.0003559,2]
[423256776,1779999076000,-416.0517048,0.0003559,2]
[423256773,1779999076000,-300.79626601,0.0003559,2]
[423256775,1779999076000,-300.0,0.0003559,2]
[423256782,1779999076000,-403.10095426,0.0003559,2]
[423256778,1779999076000,-300.0,0.0003559,2]
[423256780,1779999076000,-300.0,0.0003559,2]
[423256781,1779999076000,-300.0,0.0003559,2]
[423256779,1779999076000,-605.44192367,0.0003559,2]
[423256777,1779999076000,-493.49232006,0.0003559,2]
[423256774,1779999076000,-1096.53053831,0.0003559,2]
[423256787,1779999076000,-300.0,0.0003559,2]
[423256788,1779999076000,-301.06586081,0.0003559,2]
[423256789,1779999076000,-315.34071076,0.0003559,2]
[423256795,1779999076000,-950.53639116,0.0003559,2]
[423256790,1779999076000,-300.0,0.0003559,2]
[423256794,1779999076000,-865.81178355,0.0003559,2]
[423256796,1779999076000,-1800.20391073,0.0003559,2]
[423256791,1779999076000,-1264.24574848,0.0003559,2]
[423256793,1779999076000,-527.74435971,0.0003559,2]
[423256792,1779999076000,-344.53139053,0.0003559,2]
[423256797,1779999076000,-300.0,0.0003559,2]
[423256744,1779999076000,-300.0,0.0003559,2]
[423256786,1779999076000,-302.2839583,0.0003559,2]
[423256769,1779999076000,-300.0,0.0003559,2]
[423256783,1779999076000,-1068.67230718,0.0003559,2]
[423256768,1779999076000,-300.0,0.0003559,2]
[423256746,1779999076000,-727.22668274,0.0003559,2]
[423256765,1779999076000,-464.59046343,0.0003559,2]
[423256748,1779999076000,-300.0,0.0003559,2]
[423256747,1779999076000,-302.2839583,0.0003559,2]
[423256750,1779999076000,-300.0,0.0003559,2]
[423256758,1779999076000,-1800.20391073,0.0003559,2]
[423256759,1779999076000,-300.0,0.0003559,2]
[423256749,1779999076000,-301.06586081,0.0003559,2]
[423256757,1779999076000,-950.53639116,0.0003559,2]
[423256754,1779999076000,-344.53139053,0.0003559,2]
[423256755,1779999076000,-527.74435971,0.0003559,2]
[423256756,1779999076000,-865.81178355,0.0003559,2]
[423256752,1779999076000,-300.0,0.0003559,2]
[423256767,1779999076000,-456.26691008,0.0003559,2]
[423256753,1779999076000,-1264.24574848,0.0003559,2]
[423256760,1779999076000,-1149.10169744,0.0003559,2]
[423256761,1779999076000,-310.10057906,0.0003559,2]
[423256762,1779999076000,-594.93442456,0.0003559,2]
[423256763,1779999076000,-300.0,0.0003559,2]
[423256766,1779999076000,-300.0,0.0003559,2]
[423256770,1779999076000,-484.87971406,0.0003559,2]
[423256771,1779999076000,-310.35255644,0.0003559,2]
[423256772,1779999076000,-301.20142765,0.0003559,2]
[423256751,1779999076000,-300.0,0.0003559,2]
[423256764,1779999076000,-300.80666004,0.0003559,2]
[423256836,1779999077000,-464.59046343,0.0003559,2]
[423256831,1779999077000,-300.0,0.0003559,2]
[423256846,1779999077000,-1068.67230718,0.0003559,2]
[423256835,1779999077000,-487.78856235,0.0003559,2]
[423256829,1779999077000,-950.53639116,0.0003559,2]
[423256826,1779999077000,-344.53139053,0.0003559,2]
[423256830,1779999077000,-1800.20391073,0.0003559,2]
[423256824,1779999077000,-493.53042869,0.0003559,2]
[423256825,1779999077000,-1264.24574848,0.0003559,2]
[423256838,1779999077000,-650.16986568,0.0003559,2]
[423256828,1779999077000,-865.81178355,0.0003559,2]
[423256839,1779999077000,-310.35255644,0.0003559,2]
[423256847,1779999077000,-534.83577918,0.0003559,2]
[423256841,1779999077000,-491.2575601,0.0003559,2]
[423256840,1779999077000,-1096.53053831,0.0003559,2]
[423256843,1779999077000,-605.44192367,0.0003559,2]
[423256844,1779999077000,-300.0,0.0003559,2]
[423256845,1779999077000,-300.0,0.0003559,2]
[423256848,1779999077000,-727.22668274,0.0003559,2]
[423256860,1779999077000,-312.37415848,0.0003559,2]
[423256859,1779999077000,-1149.10169744,0.0003559,2]
[423256858,1779999077000,-300.0,0.0003559,2]
[423256849,1779999077000,-302.2839583,0.0003559,2]
[423256851,1779999077000,-301.06586081,0.0003559,2]
[423256827,1779999077000,-527.74435971,0.0003559,2]
[423256842,1779999077000,-493.49232006,0.0003559,2]
[423256821,1779999077000,-302.2839583,0.0003559,2]
[423256801,1779999077000,-300.0,0.0003559,2]
[423256834,1779999077000,-594.93442456,0.0003559,2]
[423256850,1779999077000,-300.0,0.0003559,2]
[423256798,1779999077000,-1149.10169744,0.0003559,2]
[423256799,1779999077000,-310.10057906,0.0003559,2]
[423256808,1779999077000,-310.35255644,0.0003559,2]
[423256800,1779999077000,-594.93442456,0.0003559,2]
[423256803,1779999077000,-464.59046343,0.0003559,2]
[423256804,1779999077000,-452.63792693,0.0003559,2]
[423256805,1779999077000,-301.5523917,0.0003559,2]
[423256807,1779999077000,-484.87971406,0.0003559,2]
[423256806,1779999077000,-555.51505004,0.0003559,2]
[423256802,1779999077000,-300.0,0.0003559,2]
[423256812,1779999077000,-493.49232006,0.0003559,2]
[423256823,1779999077000,-301.06586081,0.0003559,2]
[423256809,1779999077000,-565.85677961,0.0003559,2]
[423256813,1779999077000,-301.09237881,0.0003559,2]
[423256810,1779999077000,-1096.53053831,0.0003559,2]
[423256816,1779999077000,-300.0,0.0003559,2]
[423256820,1779999077000,-727.22668274,0.0003559,2]
[423256815,1779999077000,-300.0,0.0003559,2]
[423256819,1779999077000,-534.83577918,0.0003559,2]
[423256814,1779999077000,-605.44192367,0.0003559,2]
[423256818,1779999077000,-835.23460687,0.0003559,2]
[423256817,1779999077000,-702.67992968,0.0003559,2]
[423256832,1779999077000,-1149.10169744,0.0003559,2]
[423256833,1779999077000,-310.10057906,0.0003559,2]
[423256822,1779999077000,-300.0,0.0003559,2]
[423256811,1779999077000,-300.0,0.0003559,2]
[423256853,1779999077000,-344.53139053,0.0003559,2]
[423256837,1779999077000,-452.32449703,0.0003559,2]
[423256855,1779999077000,-865.81178355,0.0003559,2]
[423256887,1779999077000,-464.59046343,0.0003559,2]
[423256888,1779999077000,-300.0,0.0003559,2]
[423256889,1779999077000,-310.35255644,0.0003559,2]
[423256890,1779999077000,-330.38895634,0.0003559,2]
[423256891,1779999077000,-300.0,0.0003559,2]
[423256892,1779999077000,-493.49232006,0.0003559,2]
[423256894,1779999077000,-300.0,0.0003559,2]
[423256893,1779999077000,-605.44192367,0.0003559,2]
[423256895,1779999077000,-1068.30020172,0.0003559,2]
[423256896,1779999077000,-346.64599,0.0003559,2]
[423256897,1779999077000,-727.22668274,0.0003559,2]
[423256899,1779999077000,-300.0,0.0003559,2]
[423256886,1779999077000,-594.93442456,0.0003559,2]
[423256898,1779999077000,-302.2839583,0.0003559,2]
[423256901,1779999077000,-1264.24574848,0.0003559,2]
[423256902,1779999077000,-344.53139053,0.0003559,2]
[423256903,1779999077000,-729.40584776,0.0003559,2]
[423256904,1779999077000,-865.81178355,0.0003559,2]
[423256905,1779999077000,-950.53639116,0.0003559,2]
[423256907,1779999077000,-300.0,0.0003559,2]
[423256906,1779999077000,-1800.20391073,0.0003559,2]
[423256908,1779999077000,-496.58285674,0.0003559,2]
[423256909,1779999077000,-594.93442456,0.0003559,2]
[423256911,1779999077000,-310.35255644,0.0003559,2]
[423256910,1779999077000,-464.59046343,0.0003559,2]
[423256852,1779999077000,-1264.24574848,0.0003559,2]
[423256900,1779999077000,-301.06586081,0.0003559,2]
[423256885,1779999077000,-1149.10169744,0.0003559,2]
[423256912,1779999077000,-493.49232006,0.0003559,2]
[423256883,1779999077000,-1800.20391073,0.0003559,2]
[423256884,1779999077000,-300.0,0.0003559,2]
[423256854,1779999077000,-527.74435971,0.0003559,2]
[423256857,1779999077000,-1800.20391073,0.0003559,2]
[423256861,1779999077000,-594.93442456,0.0003559,2]
[423256863,1779999077000,-300.0,0.0003559,2]
[423256864,1779999077000,-310.35255644,0.0003559,2]
[423256871,1779999077000,-1067.92809626,0.0003559,2]
[423256872,1779999077000,-534.83577918,0.0003559,2]
[423256866,1779999077000,-493.49232006,0.0003559,2]
[423256869,1779999077000,-320.88295945,0.0003559,2]
[423256868,1779999077000,-300.0,0.0003559,2]
[423256862,1779999077000,-464.59046343,0.0003559,2]
[423256865,1779999077000,-1095.80162731,0.0003559,2]
[423256856,1779999077000,-950.53639116,0.0003559,2]
[423256913,1779999077000,-605.44192367,0.0003559,2]
[423256881,1779999077000,-865.81178355,0.0003559,2]
[423256882,1779999077000,-950.53639116,0.0003559,2]
[423256880,1779999077000,-527.74435971,0.0003559,2]
[423256867,1779999077000,-605.44192367,0.0003559,2]
[423256878,1779999077000,-1264.24574848,0.0003559,2]
[423256879,1779999077000,-344.53139053,0.0003559,2]
[423256876,1779999077000,-301.06586081,0.0003559,2]
[423256875,1779999077000,-300.0,0.0003559,2]
[423256873,1779999077000,-727.22668274,0.0003559,2]
[423256874,1779999077000,-302.2839583,0.0003559,2]
[423256870,1779999077000,-528.42556999,0.0003559,2]
[423256877,1779999077000,-300.0,0.0003559,2]
[423256953,1779999078000,-1800.20391073,0.0003559,2]
[423256949,1779999078000,-301.06586081,0.0003559,2]
[423256948,1779999078000,-545.93395308,0.0003559,2]
[423256950,1779999078000,-1264.24574848,0.0003559,2]
[423256944,1779999078000,-493.49232006,0.0003559,2]
[423256951,1779999078000,-344.30263688,0.0003559,2]
[423256947,1779999078000,-303.68626992,0.0003559,2]
[423256946,1779999078000,-300.0,0.0003559,2]
[423256945,1779999078000,-605.44192367,0.0003559,2]
[423256943,1779999078000,-312.27328744,0.0003559,2]
[423256952,1779999078000,-865.81178355,0.0003559,2]
[423256954,1779999078000,-300.0,0.0003559,2]
[423256963,1779999078000,-300.57779812,0.0003559,2]
[423256955,1779999078000,-400.06818715,0.0003559,2]
[423256957,1779999078000,-368.84300652,0.0003559,2]
[423256961,1779999078000,-1289.61853357,0.0003559,2]
[423256962,1779999078000,-865.81178355,0.0003559,2]
[423256964,1779999078000,-408.40861275,0.0003559,2]
[423256959,1779999078000,-300.0,0.0003559,2]
[423256965,1779999078000,-605.44192367,0.0003559,2]
[423256960,1779999078000,-302.36361785,0.0003559,2]
[423256958,1779999078000,-605.44192367,0.0003559,2]
[423256966,1779999078000,-300.0,0.0003559,2]
[423256942,1779999078000,-300.0,0.0003559,2]
[423256968,1779999078000,-865.24879247,0.0003559,2]
[423256956,1779999078000,-300.0,0.0003559,2]
[423256940,1779999078000,-300.0,0.0003559,2]
[423256927,1779999078000,-310.35255644,0.0003559,2]
[423256939,1779999078000,-1800.20391073,0.0003559,2]
[423256969,1779999078000,-300.0,0.0003559,2]
[423256914,1779999078000,-300.0,0.0003559,2]
[423256915,1779999078000,-727.22668274,0.0003559,2]
[423256916,1779999078000,-302.2839583,0.0003559,2]
[423256918,1779999078000,-301.06586081,0.0003559,2]
[423256917,1779999078000,-300.0,0.0003559,2]
[423256919,1779999078000,-1264.24574848,0.0003559,2]
[423256920,1779999078000,-344.53139053,0.0003559,2]
[423256921,1779999078000,-865.81178355,0.0003559,2]
[423256922,1779999078000,-652.64821237,0.0003559,2]
[423256924,1779999078000,-300.0,0.0003559,2]
[423256925,1779999078000,-594.93442456,0.0003559,2]
[423256923,1779999078000,-1800.20391073,0.0003559,2]
[423256926,1779999078000,-467.11650596,0.0003559,2]
[423256928,1779999078000,-758.61302148,0.0003559,2]
[423256929,1779999078000,-493.49232006,0.0003559,2]
[423256932,1779999078000,-665.33223515,0.0003559,2]
[423256931,1779999078000,-300.0,0.0003559,2]
[423256930,1779999078000,-605.44192367,0.0003559,2]
[423256933,1779999078000,-302.2839583,0.0003559,2]
[423256934,1779999078000,-300.0,0.0003559,2]
[423256935,1779999078000,-301.06586081,0.0003559,2]
[423256937,1779999078000,-344.53139053,0.0003559,2]
[423256936,1779999078000,-1264.24574848,0.0003559,2]
[423256938,1779999078000,-865.81178355,0.0003559,2]
[423256941,1779999078000,-594.93442456,0.0003559,2]
[423256967,1779999078000,-334.28694123,0.0003559,2]
[423256972,1779999078000,-157.6,0.00035616,60]
[423256970,1779999078000,-300.0,0.0003559,2]
[423257007,1779999078000,-1000.0,0.00035616,10]
[423257008,1779999078000,-1000.0,0.00035616,10]
[423257000,1779999078000,-1000.0,0.00035616,10]
[423257004,1779999078000,-1000.0,0.00035616,10]
[423257001,1779999078000,-1000.0,0.00035616,10]
[423257002,1779999078000,-1000.0,0.00035616,10]
[423257003,1779999078000,-1000.0,0.00035616,10]
[423257010,1779999078000,-1000.0,0.00035616,10]
[423257014,1779999078000,-1000.0,0.00035616,10]
[423257013,1779999078000,-1000.0,0.00035616,10]
[423257009,1779999078000,-1000.0,0.00035616,10]
[423257018,1779999078000,-1000.0,0.00035616,10]
[423257020,1779999078000,-1000.0,0.00035616,10]
[423257017,1779999078000,-1000.0,0.00035616,10]
[423257011,1779999078000,-1000.0,0.00035616,10]
[423256976,1779999078000,-500.0,0.00035616,7]
[423257012,1779999078000,-1000.0,0.00035616,10]
[423257019,1779999078000,-1000.0,0.00035616,10]
[423257015,1779999078000,-1000.0,0.00035616,10]
[423257021,1779999078000,-1000.0,0.00035616,10]
[423257022,1779999078000,-1000.0,0.00035616,10]
[423257025,1779999078000,-1000.0,0.00035616,10]
[423257026,1779999078000,-598.0,0.00035616,10]
[423257024,1779999078000,-1000.0,0.00035616,10]
[423257023,1779999078000,-1000.0,0.00035616,10]
[423256997,1779999078000,-1000.0,0.00035616,10]
[423256998,1779999078000,-1000.0,0.00035616,10]
[423257016,1779999078000,-1000.0,0.00035616,10]
[423257006,1779999078000,-1000.0,0.00035616,10]
[423256999,1779999078000,-1000.0,0.00035616,10]
[423256975,1779999078000,-500.0,0.00035616,7]
[423256974,1779999078000,-500.0,0.00035616,7]
[423256973,1779999078000,-500.0,0.00035616,7]
[423256977,1779999078000,-500.0,0.00035616,7]
[423256978,1779999078000,-500.0,0.00035616,7]
[423256979,1779999078000,-500.0,0.00035616,7]
[423256982,1779999078000,-500.0,0.00035616,7]
[423256981,1779999078000,-500.0,0.00035616,7]
[423256980,1779999078000,-500.0,0.00035616,7]
[423256983,1779999078000,-500.0,0.00035616,7]
[423256985,1779999078000,-500.0,0.00035616,7]
[423256971,1779999078000,-300.0,0.0003559,2]
[423256984,1779999078000,-500.0,0.00035616,7]
[423256996,1779999078000,-1000.0,0.00035616,10]
[423256986,1779999078000,-500.0,0.00035616,7]
[423257005,1779999078000,-1000.0,0.00035616,10]
[423256993,1779999078000,-490.13112493,0.00035616,7]
[423256994,1779999078000,-653.50816657,0.00035616,7]